fUST/lending_fUST_20240830
["ID","MTS","AMOUNT","RATE_DAILY","PERIOD"]
[336588236,1724959846826,-500.0,0.00019452,2]
[336588237,1724959846836,-500.0,0.00019452,2]
[336588238,1724959846847,-1704.24,0.00019452,2]
[336588239,1724959846857,-500.0,0.00019452,2]
[336588240,1724959846866,-500.0,0.00019452,2]
[336588241,1724959846876,-500.0,0.00019452,2]
[336588242,1724959846886,-500.0,0.00019452,2]
[336588243,1724959846896,-500.0,0.00019452,2]
[336588244,1724959846906,-500.0,0.00019452,2]
[336588245,1724959846915,-511.81801946,0.00019452,2]
[336588246,1724959846926,-500.0,0.00019452,2]
[336588247,1724959846936,-500.0,0.00019452,2]
[336588248,1724959846946,-500.0,0.00019452,2]
[336588249,1724959846956,-500.0,0.00019452,2]
[336588250,1724959846966,-500.0,0.00019452,2]
[336588251,1724959846976,-368.56515404,0.00019452,2]
[336588252,1724959846985,-501.9966583,0.00019452,2]
[336588253,1724959846995,-500.0,0.00019452,2]
[336588254,1724959847004,-500.0,0.00019452,2]
[336588255,1724959847014,-500.0,0.00019452,2]
[336588256,1724959847024,-500.0,0.00019452,2]
[336588257,1724959847034,-1674.51,0.00019452,2]
[336588258,1724959847044,-500.0,0.00019452,2]
[336588259,1724959847054,-500.0,0.00019452,2]
[336588260,1724959847064,-649.61324956,0.00019452,2]
[336588261,1724959847076,-621.06909077,0.00019452,2]
[336588262,1724959847089,-500.0,0.00019452,2]
[336588263,1724959847100,-500.0,0.00019452,2]
[336588264,1724959847111,-500.0,0.00019452,2]
[336588265,1724959847122,-500.0,0.00019452,2]
[336588266,1724959847132,-500.0,0.00019452,2]
[336588267,1724959847142,-500.0,0.00019452,2]
[336588268,1724959847154,-500.0,0.00019452,2]
[336588269,1724959847165,-500.0,0.00019452,2]
[336588270,1724959847175,-500.0,0.00019452,2]
[336588271,1724959847188,-500.0,0.00019452,2]
[336588272,1724959847198,-500.0,0.00019452,2]
[336588273,1724959847211,-500.0,0.00019452,2]
[336588274,1724959847223,-500.0,0.00019452,2]
[336588275,1724959847236,-500.0,0.00019452,2]
[336588276,1724959847247,-396.1924673,0.00019452,2]
[336588277,1724959847256,-500.0,0.00019452,2]
[336588278,1724959847266,-2011.91,0.00019452,2]
[336588279,1724959847277,-503.3026395,0.00019452,2]
[336588280,1724959847291,-500.0,0.00019452,2]
[336588281,1724959847301,-500.0,0.00019452,2]
[336588282,1724959847311,-1578.86,0.00019452,2]
[336588283,1724959847321,-500.0,0.00019452,2]
[336588284,1724959847332,-500.0,0.00019452,2]
[336588285,1724959847342,-500.0,0.00019452,2]
[336588286,1724959847352,-500.0,0.00019452,2]
[336588287,1724959847361,-500.0,0.00019452,2]
[336588288,1724959847372,-500.0,0.00019452,2]
[336588289,1724959847382,-503.00000002,0.00019452,2]
[336588290,1724959847391,-500.0,0.00019452,2]
[336588291,1724959847401,-500.0,0.00019452,2]
[336588292,1724959847411,-1943.11,0.00019452,2]
[336588293,1724959847421,-502.96066889,0.00019452,2]
[336588294,1724959847430,-500.0,0.00019452,2]
[336588295,1724959847439,-500.0,0.00019452,2]
[336588296,1724959847450,-500.0,0.00019452,2]
[336588297,1724959847460,-4403.86,0.00019452,2]
[336588298,1724959847469,-500.0,0.00019452,2]
[336588299,1724959847479,-3148.43,0.00019452,2]
[336588300,1724959847489,-500.0,0.00019452,2]
[336588301,1724959847499,-500.0,0.00019452,2]
[336588302,1724959847509,-458.37205676,0.00019452,2]
[336588303,1724959847521,-1722.01,0.00019452,2]
[336588304,1724959847530,-2200.88,0.00019452,2]
[336588305,1724959847540,-10005.23,0.00019452,2]
[336588306,1724959847551,-1758.17,0.00019452,2]
[336588307,1724959847560,-500.0,0.00019452,2]
[336588308,1724959847570,-500.0,0.00019452,2]
[336588309,1724959847580,-500.0,0.00019452,2]
[336588310,1724959847590,-500.0,0.00019452,2]
[336588311,1724959847600,-500.0,0.00019452,2]
[336588312,1724959847610,-500.0,0.00019452,2]
[336588313,1724959847621,-4039.87,0.00019452,2]
[336588314,1724959847633,-500.0,0.00019452,2]
[336588315,1724959847643,-2874.84,0.00019452,2]
[336588316,1724959847655,-500.0,0.00019452,2]
[336588317,1724959847665,-515.184166,0.00019452,2]
[336588318,1724959847676,-6955.28,0.00019452,2]
[336588319,1724959847687,-8645.87,0.00019452,2]
[336588320,1724959847697,-500.0,0.00019452,2]
[336588321,1724959847707,-7860.36,0.00019452,2]
[336588322,1724959847718,-500.0,0.00019452,2]
[336588323,1724959847727,-500.0,0.00019452,2]
[336588324,1724959847737,-500.0,0.00019452,2]
[336588325,1724959847747,-3052.09,0.00019452,2]
[336588326,1724959847758,-526.41,0.00019452,2]
[336588327,1724959847770,-204.69010644,0.00019452,2]
[336588328,1724959847780,-1992.41,0.00019452,2]
[336588329,1724959847790,-500.0,0.00019452,2]
[336588330,1724959847799,-500.0,0.00019452,2]
[336588331,1724959847809,-2047.97,0.00019452,2]
[336588332,1724959847818,-1568.45,0.00019452,2]
[336588333,1724959847828,-500.0,0.00019452,2]
[336588334,1724959847837,-500.0,0.00019452,2]
[336588335,1724959847847,-1562.05,0.00019452,2]
[336588336,1724959847856,-500.0,0.00019452,2]
[336588337,1724959847866,-500.0,0.00019452,2]
[336588338,1724959847875,-288.97159244,0.00019452,2]
[336588339,1724959847885,-500.0,0.00019452,2]
[336588340,1724959847894,-500.0,0.00019452,2]
[336588341,1724959847904,-500.0,0.00019452,2]
[336588342,1724959847914,-504.54012267,0.00019452,2]
[336588343,1724959847924,-500.0,0.00019452,2]
[336588344,1724959847935,-500.0,0.00019452,2]
[336588345,1724959848050,-500.0,0.00019452,2]
[336588346,1724959848060,-500.0,0.00019452,2]
[336588347,1724959848070,-500.0,0.00019452,2]
[336588348,1724959848080,-2122.12,0.00019452,2]
[336588349,1724959848089,-500.0,0.00019452,2]
[336588350,1724959848099,-500.0,0.00019452,2]
[336588351,1724959848110,-864.74,0.00019452,2]
[336588352,1724959848119,-727.36,0.00019452,2]
[336588353,1724959848129,-500.0,0.00019452,2]
[336588354,1724959848139,-500.0,0.00019452,2]
[336588355,1724959848148,-3582.04,0.00019452,2]
[336588356,1724959848158,-578.94781191,0.00019452,2]
[336588357,1724959848167,-500.0,0.00019452,2]
[336588358,1724959848179,-500.0,0.00019452,2]
[336588359,1724959848190,-500.0,0.00019452,2]
[336588360,1724959848199,-1462.75,0.00019452,2]
[336588361,1724959848209,-7676.07,0.00019452,2]
[336588362,1724959848219,-500.0,0.00019452,2]
[336588363,1724959848234,-500.0,0.00019452,2]
[336588364,1724959848244,-500.0,0.00019452,2]
[336588365,1724959848254,-535.44,0.00019452,2]
[336588366,1724959848263,-636.36,0.00019452,2]
[336588367,1724959848275,-500.0,0.00019452,2]
[336588368,1724959848285,-500.0,0.00019452,2]
[336588369,1724959848294,-500.0,0.00019452,2]
[336588370,1724959848305,-1215.51,0.00019452,2]
[336588371,1724959848315,-500.0,0.00019452,2]
[336588372,1724959848325,-500.0,0.00019452,2]
[336588373,1724959848335,-500.0,0.00019452,2]
[336588374,1724959848345,-1345.15,0.00019452,2]
[336588375,1724959848355,-2499.8,0.00019452,2]
[336588376,1724959848366,-1920.4,0.00019452,2]
[336588377,1724959848375,-500.0,0.00019452,2]
[336588378,1724959848385,-2341.41,0.00019452,2]
[336588379,1724959848395,-500.0,0.00019452,2]
[336588380,1724959848405,-503.88363176,0.00019452,2]
[336588381,1724959848415,-2245.67,0.00019452,2]
[336588382,1724959848424,-1599.38910498,0.00019452,2]
[336588383,1724959848630,-2054.49089502,0.00019452,2]
[336588384,1724959848640,-500.0,0.00019452,2]
[336588385,1724959848650,-500.0,0.00019452,2]
[336588386,1724959848660,-500.0,0.00019452,2]
[336588387,1724959848670,-500.0,0.00019452,2]
[336588388,1724959848679,-501.89902534,0.00019452,2]
[336588389,1724959848689,-168.37460567,0.00019452,2]
[336588390,1724959848698,-500.0,0.00019452,2]
[336588391,1724959848708,-1513.12,0.00019452,2]
[336588392,1724959848718,-500.0,0.00019452,2]
[336588393,1724959848727,-500.0,0.00019452,2]
[336588394,1724959848737,-500.0,0.00019452,2]
[336588395,1724959848747,-5015.805609,0.00019452,2]
[336588396,1724959848756,-500.0,0.00019452,2]
[336588397,1724959848766,-1562.151045,0.00019452,2]
[336588398,1724959848775,-7125.4,0.00019452,2]
[336588399,1724959848785,-687.9,0.00019452,2]
[336588400,1724959848794,-500.0,0.00019452,2]
[336588401,1724959848804,-2432.83,0.00019452,2]
[336588402,1724959848813,-500.0,0.00019452,2]
[336588403,1724959848824,-4438.02881997,0.00019452,2]
[336588404,1724959848911,-1303.84714363,0.00019178,2]
[336588405,1724959848924,-4858.21285637,0.00019178,2]
[336588406,1724959848933,-6162.06,0.00019178,2]
[336588407,1724959848943,-500.0,0.00019178,2]
[336588408,1724959848952,-6162.06,0.00019178,2]
[336588409,1724959848962,-6162.06,0.00019178,2]
[336588410,1724959848973,-6162.06,0.00019178,2]
[336588411,1724959848982,-6162.06,0.00019178,2]
[336588412,1724959848992,-577.77678903,0.00019452,2]
[336588413,1724959849001,-500.0,0.00019452,2]
[336588414,1724959849010,-1562.151045,0.00019452,2]
[336588415,1724959849020,-1735.37,0.00019452,2]
[336588416,1724959849030,-500.0,0.00019452,2]
[336588417,1724959849040,-500.0,0.00019452,2]
[336588418,1724959849050,-500.0,0.00019452,2]
[336588419,1724959849059,-500.0,0.00019452,2]
[336588420,1724959849069,-198.948511,0.00019452,2]
[336588421,1724959849078,-500.0,0.00019452,2]
[336588422,1724959849088,-82.97430768,0.00019452,2]
[336588423,1724959849100,-1741.76988004,0.00019452,2]
[336588424,1724959849112,-35.49581228,0.00019452,2]
[336588425,1724959849121,-151.0,0.00019452,2]
[336588426,1724959849131,-151.0,0.00019452,2]
[336588427,1724959849140,-500.0,0.00019452,2]
[336588428,1724959849150,-1823.65,0.00019452,2]
[336588429,1724959849160,-500.0,0.00019452,2]
[336588430,1724959849170,-198.948511,0.00019452,2]
[336588431,1724959849182,-151.0,0.00019452,2]
[336588432,1724959849192,-500.0,0.00019452,2]
[336588433,1724959849201,-500.0,0.00019452,2]
[336588434,1724959849212,-500.0,0.00019452,2]
[336588435,1724959849223,-500.0,0.00019452,2]
[336588436,1724959849234,-151.0,0.00019452,2]
[336588437,1724959849244,-500.0,0.00019452,2]
[336588438,1724959849253,-500.0,0.00019452,2]
[336588439,1724959849264,-500.0,0.00019452,2]
[336588440,1724959849276,-500.0,0.00019452,2]
[336588441,1724959849286,-1687.53,0.00019452,2]
[336588442,1724959849296,-640.19,0.00019452,2]
[336588443,1724959849307,-1798.968384,0.00019452,2]
[336588444,1724959849317,-500.0,0.00019452,2]
[336588445,1724959849327,-1798.968384,0.00019452,2]
[336588446,1724959849337,-2819.92,0.00019452,2]
[336588447,1724959849347,-692.81,0.00019452,2]
[336588448,1724959849357,-7069.08,0.00019452,2]
[336588449,1724959849367,-500.0,0.00019452,2]
[336588450,1724959849378,-151.0,0.00019452,2]
[336588451,1724959849388,-500.0,0.00019452,2]
[336588452,1724959849397,-7852.79,0.00019452,2]
[336588453,1724959849407,-500.0,0.00019452,2]
[336588454,1724959849417,-500.173075,0.00019452,2]
[336588455,1724959849426,-1778.75,0.00019452,2]
[336588456,1724959849437,-617.84974741,0.00019452,2]
[336588457,1724959849447,-500.0,0.00019452,2]
[336588458,1724959849457,-500.0,0.00019452,2]
[336588459,1724959849467,-151.0,0.00019452,2]
[336588460,1724959849476,-500.0,0.00019452,2]
[336588461,1724959849486,-151.0,0.00019452,2]
[336588462,1724959849496,-4018.07910472,0.00019452,2]
[336588463,1724959849642,-6162.06,0.00019178,2]
[336588464,1724959849654,-6162.06,0.00019178,2]
[336588465,1724959849665,-694.5139519,0.00019178,2]
[336588466,1724959851822,-5467.5460481,0.00019178,2]
[336588467,1724959851832,-6162.06,0.00019178,2]
[336588468,1724959851842,-6162.06,0.00019178,2]
[336588469,1724959851853,-6162.06,0.00019178,2]
[336588470,1724959851863,-6162.06,0.00019178,2]
[336588471,1724959851873,-500.0,0.00019178,2]
[336588472,1724959851885,-6162.06,0.00019341,2]
[336588473,1724959851895,-6162.06,0.00019441,2]
[336588474,1724959851906,-6162.06,0.00019441,2]
[336588475,1724959851917,-1289.81089528,0.00019452,2]
[336588476,1724959851927,-500.173075,0.00019452,2]
[336588477,1724959851938,-151.0,0.00019452,2]
[336588478,1724959851948,-500.0,0.00019452,2]
[336588479,1724959852054,-500.0,0.00019452,2]
[336588480,1724959852064,-563.48,0.00019452,2]
[336588481,1724959852076,-563.92,0.00019452,2]
[336588482,1724959852086,-500.0,0.00019452,2]
[336588483,1724959852096,-4411.53,0.00019452,2]
[336588484,1724959852106,-500.0,0.00019452,2]
[336588485,1724959852117,-501.67722022,0.00019452,2]
[336588486,1724959852127,-500.0,0.00019452,2]
[336588487,1724959852138,-810.09,0.00019452,2]
[336588488,1724959852148,-500.0,0.00019452,2]
[336588489,1724959852159,-500.0,0.00019452,2]
[336588490,1724959852169,-500.0,0.00019452,2]
[336588491,1724959852181,-500.0,0.00019452,2]
[336588492,1724959852192,-500.0,0.00019452,2]
[336588493,1724959852202,-500.0,0.00019473,2]
[336588494,1724959852212,-500.0,0.00019473,2]
[336588495,1724959852223,-500.40567098,0.00019473,2]
[336588496,1724959852233,-500.0,0.00019473,2]
[336588497,1724959852247,-190.4624371,0.00019473,2]
[336588498,1724959852257,-150.112233,0.000195,2]
[336588499,1724959852272,-5279.21,0.000195,2]
[336588500,1724959852282,-1860.94,0.000195,2]
[336588501,1724959852293,-150.112233,0.000196,2]
[336588502,1724959852302,-172.370213,0.00019621,2]
[336588503,1724959852316,-348.803016,0.00019621,2]
[336588504,1724959852326,-293.52158,0.00019621,2]
[336588505,1724959852337,-278.193651,0.00019621,2]
[336588506,1724959852348,-265.548571,0.00019621,2]
[336588507,1724959852360,-387.60637,0.00019621,2]
[336588508,1724959852369,-403.168223,0.00019621,2]
[336588509,1724959852382,-150.112233,0.000197,2]
[336588510,1724959852393,-265.253828,0.00019716,2]
[336588511,1724959852403,-151.0,0.00019716,2]
[336588512,1724959852413,-151.0,0.00019716,2]
[336588513,1724959852423,-240.64886019,0.00019721,2]
[336588514,1724959852432,-417.87872101,0.00019721,2]
[336588515,1724959852441,-151.0,0.00019726,2]
[336588516,1724959852451,-151.0,0.00019726,2]
[336588517,1724959852461,-151.0,0.00019726,2]
[336588518,1724959852470,-500.0,0.00019726,2]
[336588519,1724959852480,-500.0,0.00019726,2]
[336588520,1724959852489,-500.0,0.00019726,2]
[336588521,1724959852498,-500.0,0.00019726,2]
[336588522,1724959852508,-500.0,0.00019726,2]
[336588523,1724959852520,-500.0,0.00019726,2]
[336588524,1724959852529,-614.03486254,0.00019726,2]
[336588525,1724959852539,-500.0,0.00019726,2]
[336588526,1724959852549,-500.0,0.00019726,2]
[336588527,1724959852560,-500.0,0.00019726,2]
[336588528,1724959852570,-503.0344077,0.00019726,2]
[336588529,1724959852580,-500.0,0.00019726,2]
[336588530,1724959852590,-500.0,0.00019726,2]
[336588531,1724959852602,-151.0,0.00019726,2]
[336588532,1724959852612,-151.0,0.00019726,2]
[336588533,1724959852623,-500.0,0.00019726,2]
[336588534,1724959852634,-200.0,0.00019726,2]
[336588535,1724959852644,-500.0,0.00019726,2]
[336588536,1724959852655,-500.0,0.00019726,2]
[336588537,1724959852665,-500.0,0.00019726,2]
[336588538,1724959852675,-500.0,0.00019726,2]
[336588539,1724959852685,-500.0,0.00019726,2]
[336588540,1724959852696,-500.0,0.00019726,2]
[336588541,1724959852707,-500.0,0.00019726,2]
[336588542,1724959852717,-350.14226779,0.00019726,2]
[336588543,1724959852727,-500.0,0.00019726,2]
[336588544,1724959852736,-500.0,0.00019726,2]
[336588545,1724959852746,-500.0,0.00019726,2]
[336588546,1724959852755,-500.0,0.00019726,2]
[336588547,1724959852765,-500.0,0.00019726,2]
[336588548,1724959852784,-500.0,0.00019726,2]
[336588549,1724959852794,-500.0,0.00019726,2]
[336588550,1724959852804,-500.0,0.00019726,2]
[336588551,1724959852815,-500.0,0.00019726,2]
[336588552,1724959852825,-500.0,0.00019726,2]
[336588553,1724959852835,-972.15,0.00019726,2]
[336588554,1724959852845,-500.0,0.00019726,2]
[336588555,1724959852855,-500.0,0.00019726,2]
[336588556,1724959852865,-500.0,0.00019726,2]
[336588557,1724959852875,-500.0,0.00019726,2]
[336588558,1724959852885,-500.0,0.00019726,2]
[336588559,1724959852895,-500.0,0.00019726,2]
[336588560,1724959852905,-500.0,0.00019726,2]
[336588561,1724959852915,-178.21792266,0.00019726,2]
[336588562,1724959852924,-568.31,0.00019726,2]
[336588563,1724959852935,-500.0,0.00019726,2]
[336588564,1724959852945,-500.0,0.00019726,2]
[336588565,1724959852955,-500.0,0.00019726,2]
[336588566,1724959852966,-500.0,0.00019726,2]
[336588567,1724959852977,-500.0,0.00019726,2]
[336588568,1724959852986,-500.0,0.00019726,2]
[336588569,1724959852995,-500.0,0.00019726,2]
[336588570,1724959853005,-500.0,0.00019726,2]
[336588571,1724959853016,-886.8,0.00019726,2]
[336588572,1724959853029,-500.0,0.00019726,2]
[336588573,1724959853039,-500.0,0.00019726,2]
[336588574,1724959853050,-591.56,0.00019726,2]
[336588575,1724959853060,-500.0,0.00019726,2]
[336588576,1724959853069,-500.0,0.00019726,2]
[336588577,1724959853079,-500.0,0.00019726,2]
[336588578,1724959853088,-500.0,0.00019726,2]
[336588579,1724959853098,-500.0,0.00019726,2]
[336588580,1724959853108,-500.0,0.00019726,2]
[336588581,1724959853117,-572.09,0.00019726,2]
[336588582,1724959853127,-507.64,0.00019726,2]
[336588583,1724959853136,-500.0,0.00019726,2]
[336588584,1724959853146,-986.6,0.00019726,2]
[336588585,1724959853155,-500.0,0.00019726,2]
[336588586,1724959853164,-500.0,0.00019726,2]
[336588587,1724959853174,-500.0,0.00019726,2]
[336588588,1724959853187,-500.0,0.00019726,2]
[336588589,1724959853197,-500.0,0.00019726,2]
[336588590,1724959853206,-668.17,0.00019726,2]
[336588591,1724959853216,-500.0,0.00019726,2]
[336588592,1724959853228,-1355.56,0.00019726,2]
[336588593,1724959853238,-500.0,0.00019726,2]
[336588594,1724959853248,-776.41,0.00019726,2]
[336588595,1724959853259,-500.0,0.00019726,2]
[336588596,1724959853272,-829.52,0.00019726,2]
[336588597,1724959853281,-579.36,0.00019726,2]
[336588598,1724959853291,-500.0,0.00019726,2]
[336588599,1724959853301,-500.0,0.00019726,2]
[336588600,1724959853311,-605.81,0.00019726,2]
[336588601,1724959853322,-500.0,0.00019726,2]
[336588602,1724959853332,-500.0,0.00019726,2]
[336588603,1724959853343,-500.0,0.00019726,2]
[336588604,1724959853354,-500.0,0.00019726,2]
[336588605,1724959853364,-836.77,0.00019726,2]
[336588606,1724959853375,-500.0,0.00019726,2]
[336588607,1724959853385,-500.0,0.00019726,2]
[336588608,1724959853396,-500.0,0.00019726,2]
[336588609,1724959853406,-500.0,0.00019726,2]
[336588610,1724959853417,-584.54,0.00019726,2]
[336588611,1724959853427,-500.7,0.00019726,2]
[336588612,1724959853438,-500.0,0.00019726,2]
[336588613,1724959853448,-500.0,0.00019726,2]
[336588614,1724959853457,-500.0,0.00019726,2]
[336588615,1724959853467,-500.0,0.00019726,2]
[336588616,1724959853476,-500.0,0.00019726,2]
[336588617,1724959853486,-500.0,0.00019726,2]
[336588618,1724959853496,-500.0,0.00019726,2]
[336588619,1724959853506,-500.0,0.00019726,2]
[336588620,1724959853515,-500.0,0.00019726,2]
[336588621,1724959853528,-1704.24,0.00019726,2]
[336588622,1724959853545,-500.0,0.00019726,2]
[336588623,1724959853555,-151.0,0.00019726,2]
[336588624,1724959853564,-500.0,0.00019726,2]
[336588625,1724959853574,-500.0,0.00019726,2]
[336588626,1724959853584,-500.0,0.00019726,2]
[336588627,1724959853594,-500.0,0.00019726,2]
[336588628,1724959853604,-500.0,0.00019726,2]
[336588629,1724959853614,-500.0,0.00019726,2]
[336588630,1724959853623,-505.85041933,0.00019726,2]
[336588631,1724959853634,-500.0,0.00019726,2]
[336588632,1724959853644,-522.3451201,0.00019726,2]
[336588633,1724959853654,-500.0,0.00019726,2]
[336588634,1724959853664,-500.0,0.00019726,2]
[336588635,1724959853673,-618.4772907,0.00019726,2]
[336588636,1724959853778,-500.0,0.00019726,2]
[336588637,1724959853789,-1674.51,0.00019726,2]
[336588638,1724959853800,-507.89538107,0.00019726,2]
[336588639,1724959853810,-500.0,0.00019726,2]
[336588640,1724959853820,-151.0,0.00019726,2]
[336588641,1724959853830,-500.0,0.00019726,2]
[336588642,1724959853840,-151.0,0.00019726,2]
[336588643,1724959853851,-500.0,0.00019726,2]
[336588644,1724959853861,-500.0,0.00019726,2]
[336588645,1724959853870,-500.0,0.00019726,2]
[336588646,1724959853880,-151.0,0.00019726,2]
[336588647,1724959853891,-500.0,0.00019726,2]
[336588648,1724959853901,-500.0,0.00019726,2]
[336588649,1724959853911,-161.486919,0.00019726,2]
[336588650,1724959853920,-381.88572122,0.00019726,2]
[336588651,1724959853931,-503.25581702,0.00019726,2]
[336588652,1724959853940,-500.0,0.00019726,2]
[336588653,1724959853950,-500.0,0.00019726,2]
[336588654,1724959853961,-500.0,0.00019726,2]
[336588655,1724959853971,-2011.91,0.00019726,2]
[336588656,1724959853982,-500.0,0.00019726,2]
[336588657,1724959853993,-500.0,0.00019726,2]
[336588658,1724959854003,-1578.86,0.00019726,2]
[336588659,1724959854014,-5672.749772,0.00019726,2]
[336588660,1724959854025,-500.0,0.00019726,2]
[336588661,1724959854036,-5672.749772,0.00019726,2]
[336588662,1724959854045,-500.0,0.00019726,2]
[336588663,1724959854055,-500.0,0.00019726,2]
[336588664,1724959854064,-500.0,0.00019726,2]
[336588665,1724959854074,-5094.968618,0.00019726,2]
[336588666,1724959854085,-500.0,0.00019726,2]
[336588667,1724959854096,-5094.968618,0.00019726,2]
[336588668,1724959854106,-500.0,0.00019726,2]
[336588669,1724959854116,-500.0,0.00019726,2]
[336588670,1724959854126,-1943.11,0.00019726,2]
[336588671,1724959854136,-500.0,0.00019726,2]
[336588672,1724959854146,-500.0,0.00019726,2]
[336588673,1724959854156,-4403.86,0.00019726,2]
[336588674,1724959854165,-500.0,0.00019726,2]
[336588675,1724959854175,-3148.43,0.00019726,2]
[336588676,1724959854190,-5511.193121,0.00019726,2]
[336588677,1724959854200,-5511.193121,0.00019726,2]
[336588678,1724959854210,-500.0,0.00019726,2]
[336588679,1724959854220,-151.0,0.00019726,2]
[336588680,1724959854230,-1722.01,0.00019726,2]
[336588681,1724959854239,-2200.88,0.00019726,2]
[336588682,1724959854252,-10005.23,0.00019726,2]
[336588683,1724959854262,-1758.17,0.00019726,2]
[336588684,1724959854272,-500.0,0.00019726,2]
[336588685,1724959854281,-500.0,0.00019726,2]
[336588686,1724959854291,-151.0,0.00019726,2]
[336588687,1724959854300,-4039.87,0.00019726,2]
[336588688,1724959854310,-500.0,0.00019726,2]
[336588689,1724959854319,-2874.84,0.00019726,2]
[336588690,1724959854330,-500.0,0.00019726,2]
[336588691,1724959854340,-6955.28,0.00019726,2]
[336588692,1724959854349,-151.0,0.00019726,2]
[336588693,1724959854358,-8645.87,0.00019726,2]
[336588694,1724959854368,-500.0,0.00019726,2]
[336588695,1724959854378,-7860.36,0.00019726,2]
[336588696,1724959854387,-500.0,0.00019726,2]
[336588697,1724959854397,-500.0,0.00019726,2]
[336588698,1724959854408,-3052.09,0.00019726,2]
[336588699,1724959854420,-273.471213,0.00019726,2]
[336588700,1724959854430,-526.41,0.00019726,2]
[336588701,1724959854441,-273.471213,0.00019726,2]
[336588702,1724959854452,-1992.41,0.00019726,2]
[336588703,1724959854464,-500.0,0.00019726,2]
[336588704,1724959854474,-2516.329952,0.00019726,2]
[336588705,1724959854483,-500.0,0.00019726,2]
[336588706,1724959854492,-2047.97,0.00019726,2]
[336588707,1724959854503,-1568.45,0.00019726,2]
[336588708,1724959854512,-1778.974224,0.00019726,2]
[336588709,1724959854523,-2516.329952,0.00019726,2]
[336588710,1724959854532,-1562.05,0.00019726,2]
[336588711,1724959854541,-500.0,0.00019726,2]
[336588712,1724959854550,-1778.974224,0.00019726,2]
[336588713,1724959854560,-500.0,0.00019726,2]
[336588714,1724959854570,-500.0,0.00019726,2]
[336588715,1724959854579,-504.39884744,0.00019726,2]
[336588716,1724959854589,-500.0,0.00019726,2]
[336588717,1724959854598,-500.0,0.00019726,2]
[336588718,1724959854608,-151.0,0.00019726,2]
[336588719,1724959854618,-500.0,0.00019726,2]
[336588720,1724959854627,-500.0,0.00019726,2]
[336588721,1724959854637,-283.389656,0.00019726,2]
[336588722,1724959854646,-2122.12,0.00019726,2]
[336588723,1724959854655,-500.0,0.00019726,2]
[336588724,1724959854665,-500.0,0.00019726,2]
[336588725,1724959854674,-10000.0,0.00019726,2]
[336588726,1724959854683,-283.389656,0.00019726,2]
[336588727,1724959854693,-864.74,0.00019726,2]
[336588728,1724959854702,-727.36,0.00019726,2]
[336588729,1724959854711,-500.0,0.00019726,2]
[336588730,1724959854721,-500.0,0.00019726,2]
[336588731,1724959854730,-10000.0,0.00019726,2]
[336588732,1724959854739,-3582.04,0.00019726,2]
[336588733,1724959854749,-10000.0,0.00019726,2]
[336588734,1724959854759,-435.72596206,0.00019726,2]
[336588735,1724959854771,-500.0,0.00019726,2]